[Event "Titled Tuesday Blitz December 13 Early 2022"]
[White "Schut, Han"]
[Black "D`Arruda, Ricardo D."]
[WhiteFideId "1005561"]
[BlackFideId "100692"]
[WhiteElo "2024"]
[BlackElo "2431"]
[Result "0-1"]
[Round "09"]
[TimeControl "180+1"]
[Date "2022.12.14"]
[WhiteClock "0:00:02"]
[BlackClock "0:00:28"]

1. e4 {[%clk 0:03:00]}  c5 {[%clk 0:02:58]} 2. Nf3 {[%clk 0:03:01]}  Nc6 {[%clk 0:02:58]} 3. d4 {[%clk 0:03:01]}  cxd4 {[%clk 0:02:59]} 4. Nxd4 {[%clk 0:03:01]}  e5 {[%clk 0:02:59]} 5. Nb5 {[%clk 0:03:01]}  a6 {[%clk 0:02:59]} 6. Nd6+ {[%clk 0:03:02]}  Bxd6 {[%clk 0:02:59]} 7. Qxd6 {[%clk 0:03:02]}  Qe7 {[%clk 0:02:59]} 8. Qd2 {[%clk 0:03:03]}  Nf6 {[%clk 0:02:59]} 9. Nc3 {[%clk 0:03:03]}  d6 {[%clk 0:02:59]} 10. Bd3 {[%clk 0:03:01]}  O-O {[%clk 0:02:57]} 11. O-O {[%clk 0:03:00]}  Be6 {[%clk 0:02:56]} 12. Qg5 {[%clk 0:02:51]}  Rfe8 {[%clk 0:02:42]} 13. f4 {[%clk 0:02:37]}  exf4 {[%clk 0:02:43]} 14. Bxf4 {[%clk 0:02:14]}  Rad8 {[%clk 0:02:34]} 15. Qh4 {[%clk 0:02:00]}  Ne5 {[%clk 0:02:26]} 16. Bg5 {[%clk 0:01:55]}  Ng6 {[%clk 0:02:26]} 17. Qe1 {[%clk 0:01:38]}  Ne5 {[%clk 0:02:18]} 18. Bxf6 {[%clk 0:01:28]}  gxf6 {[%clk 0:02:19]} 19. h3 {[%clk 0:01:25]}  Rc8 {[%clk 0:02:13]} 20. Qg3+ {[%clk 0:01:20]}  Kh8 {[%clk 0:02:11]} 21. Qh4 {[%clk 0:01:19]}  Kg7 {[%clk 0:02:09]} 22. Rf2 {[%clk 0:00:52]}  Ng6 {[%clk 0:02:04]} 23. Qg3 {[%clk 0:00:52]}  Rc5 {[%clk 0:02:03]} 24. Raf1 {[%clk 0:00:50]}  Rg5 {[%clk 0:02:03]} 25. Qh2 {[%clk 0:00:41]}  Nh4 {[%clk 0:01:58]} 26. Ne2 {[%clk 0:00:35]}  Rg8 {[%clk 0:01:54]} 27. Kh1 {[%clk 0:00:34]}  Kh8 {[%clk 0:01:53]} 28. g4 {[%clk 0:00:34]}  d5 {[%clk 0:01:46]} 29. Rxf6 {[%clk 0:00:29]}  dxe4 {[%clk 0:01:45]} 30. Bxe4 {[%clk 0:00:29]}  Bc4 {[%clk 0:01:42]} 31. Nc3 {[%clk 0:00:16]}  Re5 {[%clk 0:01:37]} 32. R1f4 {[%clk 0:00:14]}  Rxe4 {[%clk 0:01:31]} 33. Nxe4 {[%clk 0:00:14]}  Bd5 {[%clk 0:01:31]} 34. Qe2 {[%clk 0:00:12]}  Ng6 {[%clk 0:01:28]} 35. Rxg6 {[%clk 0:00:11]}  Rxg6 {[%clk 0:00:54]} 36. Qe3 {[%clk 0:00:10]}  Qe5 {[%clk 0:00:50]} 37. Qc3 {[%clk 0:00:07]}  Bxe4+ {[%clk 0:00:45]} 38. Rxe4 {[%clk 0:00:07]}  Qxc3 {[%clk 0:00:45]} 39. bxc3 {[%clk 0:00:08]}  Rc6 {[%clk 0:00:45]} 40. Re7 {[%clk 0:00:07]}  Rxc3 {[%clk 0:00:44]} 41. Rxf7 {[%clk 0:00:06]}  b5 {[%clk 0:00:42]} 42. Rf2 {[%clk 0:00:02]}  Rxh3+ {[%clk 0:00:41]} 43. Kg2 {[%clk 0:00:02]}  Ra3 {[%clk 0:00:42]} 44. c4 {[%clk 0:00:01]}  bxc4 {[%clk 0:00:42]} 45. Rc2 {[%clk 0:00:02]}  c3 {[%clk 0:00:42]} 46. Kf3 {[%clk 0:00:02]}  Kg7 {[%clk 0:00:42]} 47. Ke3 {[%clk 0:00:03]}  Kg6 {[%clk 0:00:36]} 48. Kf4 {[%clk 0:00:03]}  Ra4+ {[%clk 0:00:35]} 49. Kf3 {[%clk 0:00:04]}  Rc4 {[%clk 0:00:35]} 50. Kg3 {[%clk 0:00:01]}  Kg5 {[%clk 0:00:34]} 51. Kf3 {[%clk 0:00:02]}  a5 {[%clk 0:00:29]} 52. a3 {[%clk 0:00:02]}  a4 {[%clk 0:00:28]} 0-1


[Site "https://www.chess.com"]

[Event "Titled Tuesday Blitz December 13 Early 2022"]
[White "Seo, Jung Min"]
[Black "Pakleza, Zbigniew"]
[WhiteFideId "1734687"]
[BlackFideId "1119290"]
[WhiteElo "2648"]
[BlackElo "2808"]
[Result "1-0"]
[Round "09"]
[TimeControl "180+1"]
[Date "2022.12.14"]
[WhiteClock "0:00:03"]
[BlackClock "0:00:01"]

1. c4 {[%clk 0:02:59]}  c6 {[%clk 0:02:59]} 2. d4 {[%clk 0:02:59]}  d5 {[%clk 0:02:59]} 3. Nf3 {[%clk 0:02:58]}  Nf6 {[%clk 0:02:59]} 4. e3 {[%clk 0:02:59]}  Bf5 {[%clk 0:02:59]} 5. Nc3 {[%clk 0:02:59]}  e6 {[%clk 0:03:00]} 6. Nh4 {[%clk 0:02:59]}  Be4 {[%clk 0:03:00]} 7. f3 {[%clk 0:02:59]}  Bg6 {[%clk 0:03:01]} 8. Qb3 {[%clk 0:02:59]}  Qb6 {[%clk 0:03:01]} 9. Nxg6 {[%clk 0:02:58]}  hxg6 {[%clk 0:03:02]} 10. Bd2 {[%clk 0:02:59]}  Nbd7 {[%clk 0:03:01]} 11. g3 {[%clk 0:02:55]}  Bd6 {[%clk 0:03:00]} 12. f4 {[%clk 0:02:50]}  O-O-O {[%clk 0:02:57]} 13. c5 {[%clk 0:02:48]}  Qxb3 {[%clk 0:02:57]} 14. axb3 {[%clk 0:02:48]}  Bb8 {[%clk 0:02:58]} 15. b4 {[%clk 0:02:48]}  a6 {[%clk 0:02:57]} 16. h4 {[%clk 0:02:42]}  g5 {[%clk 0:02:43]} 17. Be2 {[%clk 0:02:20]}  gxh4 {[%clk 0:02:39]} 18. g4 {[%clk 0:02:20]}  g5 {[%clk 0:02:30]} 19. fxg5 {[%clk 0:02:16]}  Ne4 {[%clk 0:02:07]} 20. Nxe4 {[%clk 0:02:12]}  dxe4 {[%clk 0:02:08]} 21. O-O {[%clk 0:01:59]}  Ne5 {[%clk 0:01:44]} 22. Bc3 {[%clk 0:01:50]}  Nf3+ {[%clk 0:01:44]} 23. Bxf3 {[%clk 0:01:50]}  exf3 {[%clk 0:01:45]} 24. Rxf3 {[%clk 0:01:50]}  Rd5 {[%clk 0:01:41]} 25. Rxf7 {[%clk 0:01:43]}  Rxg5 {[%clk 0:01:37]} 26. Kh1 {[%clk 0:01:44]}  Rhg8 {[%clk 0:00:58]} 27. Rg1 {[%clk 0:01:41]}  Bg3 {[%clk 0:00:53]} 28. Re7 {[%clk 0:01:36]}  Rxg4 {[%clk 0:00:37]} 29. Rxe6 {[%clk 0:01:34]}  Kd7 {[%clk 0:00:36]} 30. Rh6 {[%clk 0:01:32]}  Re4 {[%clk 0:00:30]} 31. Rh7+ {[%clk 0:01:23]}  Ke6 {[%clk 0:00:29]} 32. Bd2 {[%clk 0:01:15]}  Rf8 {[%clk 0:00:21]} 33. Rxb7 {[%clk 0:01:08]}  Kd5 {[%clk 0:00:21]} 34. b3 {[%clk 0:01:06]}  Re6 {[%clk 0:00:14]} 35. Ra7 {[%clk 0:00:44]}  Ke4 {[%clk 0:00:08]} 36. Rxa6 {[%clk 0:00:43]}  Rf2 {[%clk 0:00:08]} 37. Rg2 {[%clk 0:00:43]}  Rf1+ {[%clk 0:00:08]} 38. Rg1 {[%clk 0:00:43]}  Ref6 {[%clk 0:00:04]} 39. b5 {[%clk 0:00:28]}  h3 {[%clk 0:00:05]} 40. Ra1 {[%clk 0:00:17]}  Rxa1 {[%clk 0:00:04]} 41. Rxa1 {[%clk 0:00:16]}  cxb5 {[%clk 0:00:02]} 42. Rg1 {[%clk 0:00:12]}  Bf2 {[%clk 0:00:02]} 43. Rf1 {[%clk 0:00:11]}  Kd3 {[%clk 0:00:01]} 44. d5 {[%clk 0:00:07]}  Kxd2 {[%clk 0:00:01]} 45. d6 {[%clk 0:00:07]}  Ke2 {[%clk 0:00:01]} 46. d7 {[%clk 0:00:07]}  Rf8 {[%clk 0:00:02]} 47. Ra1 {[%clk 0:00:03]}  Bg3 {[%clk 0:00:02]} 48. c6 {[%clk 0:00:02]}  b4 {[%clk 0:00:01]} 49. e4 {[%clk 0:00:03]} 1-0


[Site "https://www.chess.com"]

[Event "Titled Tuesday Blitz December 13 Early 2022"]
[White "Shipov, Sergei"]
[Black "Przybylski, Wojciech"]
[WhiteFideId "4113624"]
[BlackFideId "1117599"]
[WhiteElo "2756"]
[BlackElo "2217"]
[Result "1-0"]
[Round "09"]
[TimeControl "180+1"]
[Date "2022.12.14"]
[WhiteClock "0:00:47"]
[BlackClock "0:00:03"]

1. d4 {[%clk 0:03:00]}  Nf6 {[%clk 0:02:54]} 2. c4 {[%clk 0:02:55]}  e6 {[%clk 0:02:44]} 3. Nc3 {[%clk 0:02:54]}  Bb4 {[%clk 0:02:43]} 4. Qc2 {[%clk 0:02:54]}  d5 {[%clk 0:02:42]} 5. a3 {[%clk 0:02:54]}  Bxc3+ {[%clk 0:02:41]} 6. Qxc3 {[%clk 0:02:55]}  O-O {[%clk 0:02:40]} 7. e3 {[%clk 0:02:55]}  b6 {[%clk 0:02:38]} 8. cxd5 {[%clk 0:02:55]}  Qxd5 {[%clk 0:02:33]} 9. f3 {[%clk 0:02:44]}  c5 {[%clk 0:02:30]} 10. dxc5 {[%clk 0:02:42]}  Qxc5 {[%clk 0:02:27]} 11. Qxc5 {[%clk 0:02:41]}  bxc5 {[%clk 0:02:27]} 12. e4 {[%clk 0:02:34]}  Nc6 {[%clk 0:02:26]} 13. Be3 {[%clk 0:02:34]}  Nd4 {[%clk 0:02:03]} 14. Rc1 {[%clk 0:02:33]}  Nd7 {[%clk 0:01:59]} 15. b4 {[%clk 0:02:28]}  Bb7 {[%clk 0:01:21]} 16. bxc5 {[%clk 0:02:27]}  Nc6 {[%clk 0:01:20]} 17. Ne2 {[%clk 0:02:01]}  f5 {[%clk 0:01:17]} 18. Nc3 {[%clk 0:01:48]}  Nce5 {[%clk 0:00:58]} 19. Bb5 {[%clk 0:01:39]}  Rac8 {[%clk 0:00:55]} 20. exf5 {[%clk 0:01:24]}  Nxc5 {[%clk 0:00:34]} 21. O-O {[%clk 0:01:20]}  exf5 {[%clk 0:00:29]} 22. Na4 {[%clk 0:01:14]}  Nxa4 {[%clk 0:00:17]} 23. Bxa4 {[%clk 0:01:14]}  Nc4 {[%clk 0:00:15]} 24. Bb3 {[%clk 0:00:54]}  Bd5 {[%clk 0:00:14]} 25. Bxa7 {[%clk 0:00:54]}  Rfd8 {[%clk 0:00:04]} 26. Rfd1 {[%clk 0:00:51]}  Bf7 {[%clk 0:00:01]} 27. Rxd8+ {[%clk 0:00:49]}  Rxd8 {[%clk 0:00:02]} 28. Bxc4 {[%clk 0:00:49]}  Bxc4 {[%clk 0:00:02]} 29. Rxc4 {[%clk 0:00:49]}  Rd1+ {[%clk 0:00:02]} 30. Kf2 {[%clk 0:00:49]}  Ra1 {[%clk 0:00:03]} 31. Bc5 {[%clk 0:00:48]}  Kf7 {[%clk 0:00:03]} 32. h4 {[%clk 0:00:48]}  Ke6 {[%clk 0:00:04]} 33. Bb4 {[%clk 0:00:49]}  Kd5 {[%clk 0:00:03]} 34. Rc7 {[%clk 0:00:49]}  g6 {[%clk 0:00:03]} 35. Rxh7 {[%clk 0:00:48]}  f4 {[%clk 0:00:03]} 36. Re7 {[%clk 0:00:47]}  Ra2+ {[%clk 0:00:03]} 37. Kg1 {[%clk 0:00:47]} 1-0


[Site "https://www.chess.com"]

[Event "Titled Tuesday Blitz December 13 Early 2022"]
[White "Shuvalov, Evgenij"]
[Black "Alice, Mateus Felizardo Viageiro"]
[WhiteFideId "4187237"]
[BlackFideId "14800047"]
[WhiteElo "2049"]
[BlackElo "2189"]
[Result "0-1"]
[Round "09"]
[TimeControl "180+1"]
[Date "2022.12.14"]
[WhiteClock "0:00:16"]
[BlackClock "0:01:09"]

1. d4 {[%clk 0:03:00]}  Nf6 {[%clk 0:02:57]} 2. c4 {[%clk 0:03:00]}  e6 {[%clk 0:02:56]} 3. Nf3 {[%clk 0:02:59]}  Bb4+ {[%clk 0:02:55]} 4. Nbd2 {[%clk 0:02:58]}  O-O {[%clk 0:02:52]} 5. g3 {[%clk 0:02:58]}  b6 {[%clk 0:02:52]} 6. Bg2 {[%clk 0:02:58]}  Bb7 {[%clk 0:02:53]} 7. O-O {[%clk 0:02:58]}  d5 {[%clk 0:02:52]} 8. cxd5 {[%clk 0:02:58]}  exd5 {[%clk 0:02:52]} 9. Ne5 {[%clk 0:02:58]}  h6 {[%clk 0:02:50]} 10. Ndc4 {[%clk 0:02:58]}  c6 {[%clk 0:02:46]} 11. Ne3 {[%clk 0:02:56]}  Re8 {[%clk 0:02:44]} 12. Nf5 {[%clk 0:02:51]}  Nbd7 {[%clk 0:02:41]} 13. Bf4 {[%clk 0:02:48]}  Bf8 {[%clk 0:02:35]} 14. Rc1 {[%clk 0:02:44]}  Nxe5 {[%clk 0:02:34]} 15. Bxe5 {[%clk 0:02:36]}  Bc8 {[%clk 0:02:18]} 16. Ne3 {[%clk 0:02:17]}  Bb7 {[%clk 0:02:16]} 17. Qc2 {[%clk 0:02:14]}  Nd7 {[%clk 0:02:12]} 18. Bf4 {[%clk 0:02:01]}  g5 {[%clk 0:02:05]} 19. Be5 {[%clk 0:01:50]}  Nxe5 {[%clk 0:01:56]} 20. dxe5 {[%clk 0:01:51]}  Rxe5 {[%clk 0:01:57]} 21. Rfd1 {[%clk 0:01:45]}  Qe8 {[%clk 0:01:55]} 22. Ng4 {[%clk 0:01:40]}  Re6 {[%clk 0:01:55]} 23. e4 {[%clk 0:01:31]}  dxe4 {[%clk 0:01:42]} 24. Bxe4 {[%clk 0:01:30]}  Bg7 {[%clk 0:01:42]} 25. Bf5 {[%clk 0:01:20]}  Re2 {[%clk 0:01:41]} 26. Rd2 {[%clk 0:01:11]}  Rxd2 {[%clk 0:01:40]} 27. Qxd2 {[%clk 0:01:12]}  Rd8 {[%clk 0:01:40]} 28. Qc2 {[%clk 0:01:11]}  c5 {[%clk 0:01:38]} 29. Rf1 {[%clk 0:01:00]}  Qe7 {[%clk 0:01:33]} 30. Ne3 {[%clk 0:00:48]}  Bd4 {[%clk 0:01:30]} 31. Bh7+ {[%clk 0:00:45]}  Kh8 {[%clk 0:01:27]} 32. Nf5 {[%clk 0:00:45]}  Qf6 {[%clk 0:01:21]} 33. Nxd4 {[%clk 0:00:41]}  Rxd4 {[%clk 0:01:21]} 34. f3 {[%clk 0:00:20]}  Qe5 {[%clk 0:01:13]} 35. Be4 {[%clk 0:00:20]}  Bxe4 {[%clk 0:01:10]} 36. fxe4 {[%clk 0:00:20]}  Qxe4 {[%clk 0:01:10]} 37. Qxe4 {[%clk 0:00:20]}  Rxe4 {[%clk 0:01:11]} 38. Rxf7 {[%clk 0:00:20]}  Re2 {[%clk 0:01:11]} 39. Rxa7 {[%clk 0:00:19]}  Rxb2 {[%clk 0:01:11]} 40. a4 {[%clk 0:00:19]}  c4 {[%clk 0:01:12]} 41. Rc7 {[%clk 0:00:19]}  Rb4 {[%clk 0:01:11]} 42. Kf2 {[%clk 0:00:18]}  Rxa4 {[%clk 0:01:11]} 43. Ke3 {[%clk 0:00:18]}  b5 {[%clk 0:01:10]} 44. Kd4 {[%clk 0:00:18]}  Ra2 {[%clk 0:01:09]} 45. h4 {[%clk 0:00:17]}  gxh4 {[%clk 0:01:08]} 46. gxh4 {[%clk 0:00:18]}  Rh2 {[%clk 0:01:08]} 47. Rc5 {[%clk 0:00:16]}  Rxh4+ {[%clk 0:01:07]} 48. Kc3 {[%clk 0:00:16]}  Rh3+ {[%clk 0:01:08]} 49. Kc2 {[%clk 0:00:17]}  Rb3 {[%clk 0:01:08]} 50. Rc7 {[%clk 0:00:16]}  h5 {[%clk 0:01:08]} 51. Kd2 {[%clk 0:00:16]}  h4 {[%clk 0:01:08]} 52. Ke2 {[%clk 0:00:16]}  h3 {[%clk 0:01:08]} 53. Kf2 {[%clk 0:00:17]}  Kg8 {[%clk 0:01:08]} 54. Kg1 {[%clk 0:00:16]}  Kf8 {[%clk 0:01:09]} 55. Kh2 {[%clk 0:00:16]}  Ke8 {[%clk 0:01:09]} 56. Rc5 {[%clk 0:00:16]}  Kd7 {[%clk 0:01:09]} 0-1


[Site "https://www.chess.com"]

[Event "Titled Tuesday Blitz December 13 Early 2022"]
[White "Sonnenschein, Philipp"]
[Black "Prieto Aranguren, Alain"]
[WhiteFideId "16250877"]
[BlackFideId "2268906"]
[WhiteElo "2224"]
[BlackElo "2209"]
[Result "1-0"]
[Round "09"]
[TimeControl "180+1"]
[Date "2022.12.14"]
[WhiteClock "0:00:10"]
[BlackClock "0:00:14"]

1. e4 {[%clk 0:03:00]}  e5 {[%clk 0:02:56]} 2. Nf3 {[%clk 0:03:00]}  d5 {[%clk 0:02:55]} 3. exd5 {[%clk 0:02:56]}  e4 {[%clk 0:02:50]} 4. Nd4 {[%clk 0:02:51]}  Qxd5 {[%clk 0:02:43]} 5. Nb3 {[%clk 0:02:51]}  Nc6 {[%clk 0:02:37]} 6. Nc3 {[%clk 0:02:51]}  Qf5 {[%clk 0:02:32]} 7. d3 {[%clk 0:02:42]}  Bb4 {[%clk 0:02:31]} 8. Bd2 {[%clk 0:02:38]}  Bxc3 {[%clk 0:02:25]} 9. Bxc3 {[%clk 0:02:39]}  Nf6 {[%clk 0:02:20]} 10. dxe4 {[%clk 0:02:16]}  Nxe4 {[%clk 0:02:16]} 11. Qe2 {[%clk 0:01:48]}  O-O {[%clk 0:02:07]} 12. O-O-O {[%clk 0:01:45]}  Nxc3 {[%clk 0:01:58]} 13. bxc3 {[%clk 0:01:45]}  Be6 {[%clk 0:01:56]} 14. g3 {[%clk 0:01:26]}  a5 {[%clk 0:01:54]} 15. Bg2 {[%clk 0:01:25]}  a4 {[%clk 0:01:52]} 16. Nd4 {[%clk 0:01:21]}  Nxd4 {[%clk 0:01:51]} 17. Rxd4 {[%clk 0:01:17]}  Bxa2 {[%clk 0:01:51]} 18. Rh4 {[%clk 0:01:07]}  Qc5 {[%clk 0:01:22]} 19. Qd3 {[%clk 0:00:43]}  Qa3+ {[%clk 0:01:09]} 20. Kd2 {[%clk 0:00:40]}  Rad8 {[%clk 0:01:06]} 21. Rd4 {[%clk 0:00:38]}  Rxd4 {[%clk 0:01:03]} 22. cxd4 {[%clk 0:00:30]}  Qxd3+ {[%clk 0:01:00]} 23. Kxd3 {[%clk 0:00:31]}  Ra8 {[%clk 0:00:59]} 24. Bxb7 {[%clk 0:00:30]}  Ra7 {[%clk 0:00:59]} 25. Bc6 {[%clk 0:00:24]}  a3 {[%clk 0:00:58]} 26. c4 {[%clk 0:00:20]}  Bb3 {[%clk 0:00:55]} 27. Kc3 {[%clk 0:00:17]}  a2 {[%clk 0:00:53]} 28. Ra1 {[%clk 0:00:18]}  Ra6 {[%clk 0:00:45]} 29. Bb5 {[%clk 0:00:17]}  Rf6 {[%clk 0:00:32]} 30. Kxb3 {[%clk 0:00:16]}  Rf3+ {[%clk 0:00:32]} 31. Kxa2 {[%clk 0:00:12]}  Rxf2+ {[%clk 0:00:32]} 32. Kb3 {[%clk 0:00:12]}  h5 {[%clk 0:00:30]} 33. Ra2 {[%clk 0:00:11]}  Rf3+ {[%clk 0:00:29]} 34. Kb4 {[%clk 0:00:11]}  g5 {[%clk 0:00:29]} 35. Kc5 {[%clk 0:00:10]}  h4 {[%clk 0:00:28]} 36. gxh4 {[%clk 0:00:09]}  gxh4 {[%clk 0:00:28]} 37. Kc6 {[%clk 0:00:08]}  Rf4 {[%clk 0:00:29]} 38. d5 {[%clk 0:00:08]}  Rg4 {[%clk 0:00:27]} 39. Kxc7 {[%clk 0:00:08]}  h3 {[%clk 0:00:27]} 40. Ra3 {[%clk 0:00:08]}  Rh4 {[%clk 0:00:23]} 41. d6 {[%clk 0:00:08]}  Rh5 {[%clk 0:00:21]} 42. d7 {[%clk 0:00:08]}  Rc5+ {[%clk 0:00:21]} 43. Kd6 {[%clk 0:00:07]}  Rxb5 {[%clk 0:00:20]} 44. cxb5 {[%clk 0:00:07]}  Kh7 {[%clk 0:00:18]} 45. d8=Q {[%clk 0:00:08]}  f5 {[%clk 0:00:18]} 46. Rxh3+ {[%clk 0:00:08]}  Kg7 {[%clk 0:00:15]} 47. Qe7+ {[%clk 0:00:08]}  Kg6 {[%clk 0:00:15]} 48. Ke5 {[%clk 0:00:09]}  f4 {[%clk 0:00:14]} 49. Qf6# {[%clk 0:00:10]} 1-0


[Site "https://www.chess.com"]

[Event "Titled Tuesday Blitz December 13 Early 2022"]
[White "Torres Boch, Jose Francisco"]
[Black "Klepikov, Nikita"]
[WhiteFideId "2278383"]
[BlackFideId "24145220"]
[WhiteElo "2073"]
[BlackElo "2025"]
[Result "1-0"]
[Round "09"]
[TimeControl "180+1"]
[Date "2022.12.14"]
[WhiteClock "0:01:19"]
[BlackClock "0:00:01"]

1. e4 {[%clk 0:02:52]}  c5 {[%clk 0:02:59]} 2. Nf3 {[%clk 0:02:53]}  Nc6 {[%clk 0:02:59]} 3. d4 {[%clk 0:02:53]}  cxd4 {[%clk 0:03:00]} 4. Nxd4 {[%clk 0:02:53]}  g6 {[%clk 0:03:01]} 5. Nc3 {[%clk 0:02:54]}  Bg7 {[%clk 0:03:01]} 6. Be3 {[%clk 0:02:54]}  Nf6 {[%clk 0:03:02]} 7. Bc4 {[%clk 0:02:54]}  O-O {[%clk 0:03:00]} 8. Bb3 {[%clk 0:02:54]}  Re8 {[%clk 0:02:59]} 9. O-O {[%clk 0:02:52]}  d6 {[%clk 0:02:47]} 10. h3 {[%clk 0:02:51]}  Na5 {[%clk 0:02:45]} 11. Qe2 {[%clk 0:02:47]}  a6 {[%clk 0:02:36]} 12. Nd5 {[%clk 0:02:34]}  Nxd5 {[%clk 0:02:31]} 13. exd5 {[%clk 0:02:30]}  b5 {[%clk 0:02:18]} 14. c4 {[%clk 0:02:28]}  bxc4 {[%clk 0:01:59]} 15. Bxc4 {[%clk 0:02:26]}  Bb7 {[%clk 0:01:55]} 16. Rad1 {[%clk 0:02:20]}  Nxc4 {[%clk 0:01:33]} 17. Qxc4 {[%clk 0:02:18]}  Qa5 {[%clk 0:01:33]} 18. Nc6 {[%clk 0:02:12]}  Bxc6 {[%clk 0:01:29]} 19. dxc6 {[%clk 0:02:13]}  Bxb2 {[%clk 0:01:23]} 20. Rb1 {[%clk 0:02:11]}  Bf6 {[%clk 0:01:14]} 21. Rb7 {[%clk 0:02:10]}  Rec8 {[%clk 0:01:06]} 22. Rfb1 {[%clk 0:02:08]}  d5 {[%clk 0:01:00]} 23. Qc2 {[%clk 0:02:03]}  d4 {[%clk 0:00:56]} 24. Bf4 {[%clk 0:01:54]}  Qd5 {[%clk 0:00:45]} 25. c7 {[%clk 0:01:46]}  e5 {[%clk 0:00:21]} 26. Bd2 {[%clk 0:01:46]}  d3 {[%clk 0:00:11]} 27. Qb3 {[%clk 0:01:41]}  Qd7 {[%clk 0:00:05]} 28. Qc4 {[%clk 0:01:38]}  Kg7 {[%clk 0:00:04]} 29. R1b3 {[%clk 0:01:32]}  Qd4 {[%clk 0:00:01]} 30. Qxd4 {[%clk 0:01:31]}  exd4 {[%clk 0:00:01]} 31. Rxd3 {[%clk 0:01:31]}  Be5 {[%clk 0:00:02]} 32. Ba5 {[%clk 0:01:29]}  Re8 {[%clk 0:00:01]} 33. g3 {[%clk 0:01:23]}  Rac8 {[%clk 0:00:01]} 34. Kg2 {[%clk 0:01:23]}  Re7 {[%clk 0:00:01]} 35. Ra7 {[%clk 0:01:19]} 1-0


[Site "https://www.chess.com"]

[Event "Titled Tuesday Blitz December 13 Early 2022"]
[White "Xiong, Jeffery"]
[Black "Jobava, Baadur"]
[WhiteFideId "2047640"]
[BlackFideId "13601520"]
[WhiteElo "2726"]
[BlackElo "2582"]
[Result "0-1"]
[Round "09"]
[TimeControl "180+1"]
[Date "2022.12.13"]
[WhiteClock "0:00:16"]
[BlackClock "0:00:11"]

1. d4 {[%clk 0:03:00]}  d5 {[%clk 0:02:58]} 2. c4 {[%clk 0:03:00]}  dxc4 {[%clk 0:02:59]} 3. Nf3 {[%clk 0:03:00]}  Nf6 {[%clk 0:02:59]} 4. e3 {[%clk 0:03:00]}  Bg4 {[%clk 0:03:00]} 5. Bxc4 {[%clk 0:03:01]}  e6 {[%clk 0:03:00]} 6. O-O {[%clk 0:03:01]}  Bd6 {[%clk 0:03:00]} 7. b3 {[%clk 0:03:01]}  Nbd7 {[%clk 0:02:58]} 8. Bb2 {[%clk 0:03:02]}  O-O {[%clk 0:02:58]} 9. Be2 {[%clk 0:03:03]}  Qe7 {[%clk 0:02:54]} 10. Nbd2 {[%clk 0:03:03]}  Ba3 {[%clk 0:02:53]} 11. Bxa3 {[%clk 0:03:02]}  Qxa3 {[%clk 0:02:54]} 12. h3 {[%clk 0:03:02]}  Bxf3 {[%clk 0:02:54]} 13. Bxf3 {[%clk 0:03:00]}  c6 {[%clk 0:02:54]} 14. Nc4 {[%clk 0:03:00]}  Qe7 {[%clk 0:02:54]} 15. e4 {[%clk 0:02:52]}  e5 {[%clk 0:02:48]} 16. d5 {[%clk 0:02:53]}  Rfd8 {[%clk 0:02:40]} 17. Re1 {[%clk 0:02:49]}  Nb6 {[%clk 0:02:33]} 18. Qe2 {[%clk 0:02:21]}  Nxc4 {[%clk 0:02:18]} 19. bxc4 {[%clk 0:02:22]}  Nd7 {[%clk 0:02:15]} 20. a4 {[%clk 0:02:13]}  Nc5 {[%clk 0:02:10]} 21. Qe3 {[%clk 0:02:11]}  a5 {[%clk 0:01:59]} 22. Reb1 {[%clk 0:02:10]}  h6 {[%clk 0:01:55]} 23. Rb6 {[%clk 0:02:07]}  Ra6 {[%clk 0:01:39]} 24. Rbb1 {[%clk 0:01:39]}  Raa8 {[%clk 0:01:31]} 25. Rb6 {[%clk 0:01:37]}  Ra6 {[%clk 0:01:31]} 26. Rxa6 {[%clk 0:01:32]}  Nxa6 {[%clk 0:01:31]} 27. Qb6 {[%clk 0:01:33]}  Nc5 {[%clk 0:01:14]} 28. d6 {[%clk 0:01:16]}  Rxd6 {[%clk 0:01:13]} 29. Rb1 {[%clk 0:00:58]}  Rd4 {[%clk 0:01:00]} 30. Qxa5 {[%clk 0:00:46]}  Rxc4 {[%clk 0:01:00]} 31. Qa8+ {[%clk 0:00:46]}  Qf8 {[%clk 0:00:58]} 32. Qa5 {[%clk 0:00:39]}  Rxa4 {[%clk 0:00:36]} 33. Qc7 {[%clk 0:00:40]}  Qe8 {[%clk 0:00:34]} 34. Rc1 {[%clk 0:00:38]}  Nd3 {[%clk 0:00:31]} 35. Rd1 {[%clk 0:00:37]}  Rd4 {[%clk 0:00:32]} 36. Qxb7 {[%clk 0:00:37]}  Nc5 {[%clk 0:00:32]} 37. Qc7 {[%clk 0:00:30]}  Rxd1+ {[%clk 0:00:29]} 38. Bxd1 {[%clk 0:00:31]}  Qd7 {[%clk 0:00:25]} 39. Qxd7 {[%clk 0:00:30]}  Nxd7 {[%clk 0:00:25]} 40. Ba4 {[%clk 0:00:31]}  Nb8 {[%clk 0:00:24]} 41. Kf1 {[%clk 0:00:31]}  Kf8 {[%clk 0:00:25]} 42. Ke2 {[%clk 0:00:32]}  Ke7 {[%clk 0:00:26]} 43. Kd3 {[%clk 0:00:33]}  Kd6 {[%clk 0:00:26]} 44. Bb3 {[%clk 0:00:33]}  f6 {[%clk 0:00:26]} 45. Ke3 {[%clk 0:00:33]}  Nd7 {[%clk 0:00:27]} 46. Kf3 {[%clk 0:00:31]}  Nc5 {[%clk 0:00:27]} 47. Bc4 {[%clk 0:00:32]}  Ne6 {[%clk 0:00:27]} 48. h4 {[%clk 0:00:31]}  h5 {[%clk 0:00:22]} 49. g4 {[%clk 0:00:27]}  hxg4+ {[%clk 0:00:18]} 50. Kxg4 {[%clk 0:00:28]}  Nf4 {[%clk 0:00:19]} 51. Kf5 {[%clk 0:00:26]}  Kc5 {[%clk 0:00:14]} 52. Bf7 {[%clk 0:00:20]}  Kd4 {[%clk 0:00:15]} 53. h5 {[%clk 0:00:20]}  c5 {[%clk 0:00:15]} 54. f3 {[%clk 0:00:17]}  c4 {[%clk 0:00:13]} 55. h6 {[%clk 0:00:17]}  gxh6 {[%clk 0:00:13]} 56. Kxf6 {[%clk 0:00:18]}  c3 {[%clk 0:00:13]} 57. Bb3 {[%clk 0:00:19]}  h5 {[%clk 0:00:13]} 58. Kg5 {[%clk 0:00:19]}  Ke3 {[%clk 0:00:13]} 59. Kf5 {[%clk 0:00:16]}  h4 {[%clk 0:00:12]} 60. Kg4 {[%clk 0:00:15]}  h3 {[%clk 0:00:11]} 61. Kg3 {[%clk 0:00:16]}  Kd2 {[%clk 0:00:11]} 0-1


[Site "https://www.chess.com"]